bitfinex/quotes_SOLUSD_20251127
["timestamp","ask_amount","ask_price","bid_price","bid_amount"]
[1764208711568,4.08937623,143.41,143.39,50.0]
[1764208712242,4.08937623,143.42,143.39,53.14]
[1764208712457,4.75937623,143.42,143.39,53.14]
[1764208712636,4.08937623,143.42,143.39,53.14]
[1764208712958,4.75937623,143.41,143.39,53.14]
[1764208713146,0.67,143.41,143.39,50.0]
[1764208713337,4.08937623,143.4,143.39,50.0]
[1764208713545,4.75937623,143.41,143.39,50.0]
[1764208715249,0.67,143.41,143.39,50.0]
[1764208715448,4.75937623,143.41,143.39,50.0]
[1764208717037,4.75937623,143.4,143.39,50.0]
[1764208717244,0.67,143.4,143.39,50.0]
[1764208717541,0.67,143.41,143.39,50.0]
[1764208719939,4.08937623,143.42,143.39,50.0]
[1764208720144,0.72,143.42,143.39,50.0]
[1764208720439,4.80937623,143.42,143.39,50.0]
[1764208720845,4.80937623,143.42,143.4,500.0]
[1764208721263,4.08937623,143.41,143.4,503.14]
[1764208721748,4.80937623,143.41,143.4,503.14]
[1764208724770,4.08937623,143.41,143.4,503.14]
[1764208724971,0.72,143.41,143.4,503.14]
[1764208725372,4.80937623,143.41,143.4,500.0]
[1764208726470,11.78239066,143.41,143.4,500.0]
[1764208729145,7.69301443,143.41,143.4,500.0]
[1764208729370,4.08937623,143.41,143.4,500.0]
[1764208729667,4.80937623,143.41,143.4,500.0]
[1764208730459,11.78239066,143.41,143.4,500.0]
[1764208730651,7.69301443,143.41,143.4,500.0]
[1764208730846,11.78239066,143.41,143.4,500.0]
[1764208731075,4.80937623,143.41,143.4,500.0]
[1764208731350,0.72,143.41,143.4,500.0]
[1764208731549,4.80937623,143.41,143.4,500.0]
[1764208731974,11.78239066,143.41,143.4,500.0]
[1764208734047,7.69301443,143.41,143.4,500.0]
[1764208734279,11.78239066,143.41,143.4,500.0]
[1764208734888,14.92239066,143.41,143.4,499.28]
[1764208736159,15.2067138,143.41,143.4,499.28]
[1764208736495,14.92239066,143.41,143.4,499.28]
[1764208737690,10.83301443,143.41,143.4,499.28]
[1764208737899,14.92239066,143.41,143.4,499.28]
[1764208738984,13.69634248,143.41,143.4,499.28]
[1764208740989,10.55634248,143.41,143.4,499.28]
[1764208741175,10.83301443,143.41,143.4,499.28]
[1764208741378,13.69634248,143.41,143.4,499.28]
[1764208743176,9.83634248,143.41,143.4,499.28]
[1764208743377,10.55634248,143.41,143.4,499.28]
[1764208743569,9.83634248,143.41,143.4,499.28]
[1764208745275,10.49634248,143.41,143.4,499.28]
[1764208747101,5.84234994,143.45,143.4,499.95]
[1764208747281,17.42539863,143.47,143.41,3.81]
[1764208747282,2.86332805,143.43,143.41,3.81]
[1764208747790,2.86332805,143.42,143.41,3.81]
[1764208748501,2.86332805,143.43,143.41,3.81]
[1764208749074,6.97157557,143.44,143.42,0.67]
[1764208749270,2.86332805,143.44,143.42,0.67]
[1764208749709,2.86332805,143.44,143.41,3.14]
[1764208749877,2.86332805,143.42,143.41,3.14]
[1764208752593,22.28459655,143.49,143.41,9.5366561]
[1764208752916,3.64044999,143.54,143.5,16.308864]
[1764208753215,2.96332805,143.56,143.51,3.16]
[1764208753419,2.86332805,143.55,143.51,3.16]
[1764208753585,2.86332805,143.55,143.53,16.308864]
[1764208753789,0.76,143.56,143.54,3.16]
[1764208754490,0.1,143.56,143.54,19.468864]
[1764208754818,0.1,143.56,143.54,3.16]
[1764208755890,2.96332805,143.56,143.54,3.16]
[1764208756286,0.1,143.56,143.54,3.16]
[1764208756490,0.1,143.56,143.54,22.33219205]
[1764208756797,0.1,143.56,143.54,29.29888997]
[1764208756993,0.1,143.56,143.54,19.468864]
[1764208757413,0.1,143.56,143.54,29.29886385]
[1764208758327,0.1,143.56,143.54,19.468864]
[1764208759520,0.1,143.56,143.54,22.33219205]
[1764208760726,0.1,143.56,143.54,19.468864]
[1764208761095,0.1,143.56,143.54,3.16]
[1764208761300,3.62332805,143.56,143.54,3.16]
[1764208761524,0.76,143.56,143.54,3.16]
[1764208761740,0.66,143.55,143.54,3.16]
[1764208761900,3.52332805,143.55,143.54,3.16]
[1764208762103,3.52332805,143.55,143.51,3.16]
[1764208762418,2.86332805,143.52,143.51,3.16]
[1764208762628,7.58226386,143.52,143.51,3.16]
[1764208762831,8.24226386,143.52,143.51,3.16]
[1764208763037,8.24226386,143.52,143.46,16.308864]
[1764208763327,8.24226386,143.52,143.47,3.16]
[1764208763825,8.24226386,143.51,143.47,3.16]
[1764208764127,7.58226386,143.53,143.48,7.58226386]
[1764208764330,8.24226386,143.53,143.48,7.58226386]
[1764208764534,7.58226386,143.54,143.49,7.58226386]
[1764208764837,7.58226386,143.54,143.5,3.16]
[1764208765129,0.66,143.54,143.5,3.16]
[1764208765499,8.24226386,143.54,143.5,3.16]
[1764208765917,0.66,143.54,143.5,3.16]
[1764208766120,8.24226386,143.54,143.5,3.16]
[1764208766323,7.58226386,143.54,143.5,3.16]
[1764208766735,0.66,143.54,143.5,3.16]
[1764208767105,0.1,143.56,143.53,7.58226386]
[1764208767317,0.1,143.56,143.54,10.74226386]
[1764208767524,0.1,143.56,143.54,17.70884197]
[1764208768040,0.1,143.56,143.55,108.6820173]
[1764208768206,0.1,143.56,143.55,113.26183076]
[1764208768532,0.1,143.56,143.55,110.57162063]
[1764208768731,0.1,143.56,143.55,101.09975344]
[1764208768919,0.1,143.56,143.55,96.20091773]
[1764208769124,0.1,143.56,143.55,105.99180717]
[1764208769418,0.1,143.56,143.55,117.53413963]
[1764208771214,0.1,143.56,143.55,112.6420859]
[1764208771415,0.1,143.56,143.55,116.83751825]
[1764208772024,0.1,143.56,143.55,102.85119646]
[1764208772310,0.1,143.56,143.55,16.308864]
[1764208772525,0.1,143.56,143.55,103.16713159]
[1764208772936,0.1,143.56,143.55,101.43507786]
[1764208773127,0.1,143.56,143.55,19.468864]
[1764208773333,0.1,143.56,143.55,3.16]
[1764208777718,5.65205373,143.56,143.55,3.16]
[1764208778932,0.76,143.56,143.55,3.16]
[1764208779132,5.65205373,143.56,143.55,3.16]
[1764208779516,5.65205373,143.56,143.5,591.308864]
[1764208779517,12.61778234,143.56,143.5,516.308864]
[1764208779714,5.55205373,143.55,143.51,3.16]
[1764208780209,0.71,143.54,143.51,3.16]
[1764208781414,5.60205373,143.54,143.51,3.16]
[1764208781822,0.71,143.53,143.51,3.16]
[1764208783331,0.71,143.53,143.5,500.0]
[1764208783525,5.60205373,143.53,143.52,3.14]
[1764208783734,0.71,143.53,143.52,3.14]
[1764208783925,0.71,143.53,143.51,503.14]
[1764208786913,5.60205373,143.53,143.51,503.14]
[1764208787128,12.56928605,143.53,143.51,503.14]
[1764208787338,0.71,143.52,143.51,503.14]
[1764208787751,0.71,143.52,143.51,500.0]
[1764208787930,21.91091773,143.52,143.51,497.73]
[1764208788129,17.018864,143.52,143.51,497.73]
[1764208788331,28.87858774,143.52,143.51,497.73]
[1764208789059,28.87858774,143.52,143.51,460.00835845]
[1764208789635,7.67767001,143.52,143.51,460.00835845]
[1764208789861,12.56972374,143.52,143.51,460.00835845]
[1764208790836,12.56972374,143.52,143.51,211.3220817]
[1764208791036,37.9728558,143.52,143.51,29.65495187]
[1764208791249,37.9728558,143.52,143.5,500.0]
[1764208791250,11.09426805,143.51,143.5,228.79993969]
[1764208791441,16.308864,143.48,143.4,503.13]
[1764208791648,4.89205373,143.44,143.4,503.13]
[1764208791954,19.448864,143.48,143.41,0.71]
[1764208792252,4.89205373,143.45,143.41,0.71]
[1764208792654,4.89205373,143.45,143.4,502.42]
[1764208792838,6.97155605,143.44,143.4,503.13]
[1764208793240,6.97155605,143.44,143.4,499.99]
[1764208793461,4.89205373,143.43,143.4,499.99]
[1764208794133,6.97155605,143.44,143.4,499.99]
[1764208794134,11.86360978,143.44,143.4,499.99]
[1764208794335,29.2924999,143.44,143.4,499.99]
[1764208794545,26.23216673,143.44,143.4,499.99]
[1764208795454,26.23216673,143.44,143.41,0.71]
[1764208795644,8.80327661,143.44,143.41,0.71]
[1764208796038,6.97155605,143.44,143.41,0.71]
[1764208796438,8.80327661,143.44,143.41,0.71]
[1764208797060,26.23216673,143.44,143.41,0.71]
[1764208797435,6.97155605,143.44,143.41,0.71]
[1764208797636,6.9711894,143.45,143.41,0.71]
[1764208799159,101.48,143.47,143.41,0.71]
[1764208799359,108.45012318,143.47,143.41,0.71]
[1764208799737,108.45012318,143.47,143.4,502.42]
[1764208799738,125.87536887,143.47,143.4,502.42]
[1764208799940,1.83172056,143.44,143.4,503.13]
[1764208800289,1.83172056,143.43,143.4,499.28]
[1764208801161,6.97155605,143.44,143.41,0.71]
[1764208802463,26.23216673,143.44,143.4,499.28]
[1764208802763,4.90773707,143.41,143.4,499.28]
[1764208802959,6.97155605,143.44,143.41,0.71]
[1764208803266,8.80994492,143.5,143.42,8.04773707]
[1764208803444,4.90773707,143.48,143.41,0.71]
[1764208803641,4.90773707,143.47,143.42,4.90773707]
[1764208803938,4.90773707,143.47,143.41,3.85]
[1764208804250,4.90773707,143.47,143.42,0.71]
[1764208804444,8.80994492,143.5,143.42,5.61773707]
[1764208804647,3.14,143.52,143.45,4.90773707]
[1764208804961,4.90773707,143.46,143.41,0.71]
[1764208805158,6.97155605,143.44,143.41,0.71]
[1764208806469,11.87929312,143.44,143.41,0.71]
[1764208806643,6.97155605,143.44,143.41,0.71]
[1764208807796,6.9711535,143.45,143.41,0.71]
[1764208807960,6.9711535,143.45,143.41,5.61773707]
[1764208808453,6.9711535,143.45,143.4,502.42]
[1764208808454,25.47194344,143.48,143.42,5.58773707]
[1764208808847,25.47194344,143.48,143.42,4.90773707]
[1764208809052,11.87790819,143.47,143.43,0.68]
[1764208809250,6.97017112,143.47,143.43,0.68]
[1764208809456,11.87790819,143.47,143.43,0.68]
[1764208810043,17.42420637,143.48,143.43,5.58773707]
[1764208810044,11.87738855,143.48,143.43,5.58773707]
[1764208810551,11.87738855,143.48,143.44,0.7]
[1764208811145,6.96965148,143.48,143.44,0.7]
[1764208811345,4.90773707,143.48,143.44,0.7]
[1764208811969,4.90773707,143.47,143.44,0.7]
[1764208812275,4.90773707,143.48,143.44,0.7]
[1764208812650,4.90773707,143.49,143.44,0.7]
[1764208813070,4.90773707,143.48,143.44,0.7]
[1764208813458,6.97009827,143.47,143.44,0.7]
[1764208813772,4.90773707,143.46,143.42,0.7]
[1764208813967,4.90773707,143.44,143.42,0.7]
[1764208814342,4.90773707,143.43,143.4,499.28]
[1764208814571,4.90773707,143.42,143.4,499.28]
[1764208815068,4.90773707,143.41,143.4,499.98]
[1764208815589,15.0207515,143.41,143.4,462.03636296]
[1764208816974,24.11501956,143.41,143.4,415.65017785]
[1764208817180,31.3296155,143.41,143.4,211.77628034]
[1764208817459,28.1896155,143.41,143.4,211.77628034]
[1764208819371,11.8807515,143.41,143.4,211.77628034]
[1764208820050,6.97301443,143.41,143.4,211.77628034]
[1764208820266,11.8807515,143.41,143.4,211.77628034]
[1764208825372,37.28388356,143.41,143.4,211.77628034]
[1764208825671,37.28388356,143.41,143.4,175.28487289]
[1764208826151,9.09426806,143.4,143.39,50.0]
[1764208826348,17.14200513,143.4,143.33,0.7]
[1764208826548,4.90773707,143.34,143.32,3.84]
[1764208826753,11.88451445,143.34,143.32,0.7]
[1764208828349,4.90773707,143.33,143.32,0.7]
[1764208828579,7.60277876,143.33,143.32,0.7]
[1764208828874,10.11546537,143.36,143.32,0.7]
[1764208829076,3.14,143.36,143.32,0.7]
[1764208829251,10.115523,143.36,143.32,0.7]
[1764208829656,27.55413907,143.36,143.32,0.7]
[1764208831174,25.04139483,143.36,143.32,0.7]
[1764208831351,7.60277876,143.33,143.32,0.7]
[1764208832275,7.60277876,143.33,143.31,0.2]
[1764208832792,7.60277876,143.32,143.31,0.9]
[1764208832973,6.97690643,143.33,143.31,0.9]
[1764208833155,14.57934529,143.34,143.32,0.7]
[1764208833353,7.60277876,143.33,143.32,0.7]
[1764208834380,6.97656653,143.34,143.32,0.7]
[1764208834987,14.57968519,143.33,143.32,0.7]
[1764208835172,6.97690643,143.33,143.32,0.7]
[1764208835368,6.97648959,143.34,143.32,0.7]
[1764208835572,14.57926835,143.34,143.32,0.7]
[1764208835767,7.60277876,143.33,143.31,0.2]
[1764208835959,6.97648959,143.34,143.31,0.2]
[1764208835960,7.60277876,143.32,143.31,0.2]
[1764208836286,7.60277876,143.32,143.31,0.9]
[1764208836581,7.60277876,143.33,143.31,0.9]
[1764208836879,24.41753884,143.34,143.31,0.9]
[1764208836880,7.60277876,143.32,143.31,0.9]
[1764208837058,14.580172,143.32,143.31,0.9]
[1764208839078,20.56104925,143.34,143.31,0.9]
[1764208839079,17.44104925,143.34,143.31,0.9]
[1764208839271,7.60277876,143.32,143.31,0.2]
[1764208839777,10.72277876,143.32,143.31,0.2]
[1764208840780,17.700172,143.32,143.31,0.2]
[1764208841183,10.09739324,143.32,143.31,0.2]
[1764208841372,17.700172,143.32,143.31,0.2]
[1764208842989,14.580172,143.32,143.31,0.88]
[1764208843191,17.700172,143.32,143.31,0.2]
[1764208844784,8.80994492,143.31,143.25,0.88]
[1764208844986,7.60277876,143.27,143.25,0.88]
[1764208845331,6.97677077,143.34,143.26,8.28277876]
[1764208845583,7.60277876,143.28,143.26,0.68]
[1764208845784,7.60277876,143.28,143.27,0.68]
[1764208847188,14.58211991,143.28,143.27,0.68]
[1764208847870,32.03047278,143.28,143.25,0.88]
[1764208848198,7.60277876,143.26,143.25,0.2]
[1764208848486,7.60277876,143.26,143.25,0.88]
[1764208848699,7.60277876,143.26,143.25,0.2]
[1764208849301,14.58309427,143.26,143.25,0.2]
[1764208849473,14.58309427,143.26,143.25,0.88]
[1764208850088,6.98031551,143.26,143.25,0.88]
[1764208850308,14.58309427,143.26,143.25,0.88]
[1764208850605,9.84928132,143.26,143.25,0.88]
[1764208852979,9.84928132,143.26,143.25,0.2]
[1764208854506,6.98031551,143.26,143.25,0.2]
[1764208854709,9.84928132,143.26,143.25,0.2]
[1764208854882,9.84928132,143.26,143.25,0.88]
[1764208855406,16.308864,143.25,143.21,0.68]
[1764208855612,2.86896581,143.22,143.21,0.68]
[1764208856685,2.86896581,143.22,143.19,54.80371901]
[1764208856891,2.86896581,143.2,143.19,54.80371901]
[1764208857290,9.09426806,143.24,143.19,54.80371901]
[1764208857603,2.86896581,143.2,143.19,55.48371901]
[1764208858303,2.86896581,143.2,143.19,54.80371901]
[1764208858600,19.17782981,143.2,143.19,54.80371901]
[1764208858802,19.17782981,143.2,143.19,55.48371901]
[1764208858983,19.17782981,143.2,143.19,54.80371901]
[1764208859323,16.308864,143.2,143.19,54.80371901]
[1764208859606,26.16107003,143.2,143.19,55.48371901]
[1764208859805,26.16107003,143.2,143.19,54.80371901]
[1764208860008,23.29210422,143.2,143.19,55.48371901]
[1764208860182,26.16107003,143.2,143.19,54.80371901]
[1764208861212,2.86896581,143.21,143.19,54.80371901]
[1764208861421,9.85220603,143.2,143.19,54.80371901]
[1764208861583,0.28432314,143.21,143.19,54.80371901]
[1764208861584,6.9832239,143.21,143.19,55.48371901]
[1764208861791,2.86896581,143.2,143.19,55.48371901]
[1764208862296,2.86896581,143.2,143.19,54.80371901]
[1764208862683,15.08323387,143.2,143.19,19.80224552]
[1764208863295,9.09426806,143.2,143.19,19.80224552]
[1764208863491,35.50637228,143.2,143.19,19.80224552]
[1764208863686,35.50637228,143.2,143.13,0.68]
[1764208863687,25.11880892,143.18,143.13,0.68]
[1764208863886,2.86896581,143.14,143.13,0.68]
[1764208864490,2.86896581,143.14,143.12,56.96652893]
[1764208864813,2.86896581,143.13,143.12,56.96652893]
[1764208865197,16.308864,143.11,143.1,0.2]
[1764208865503,2.86896581,143.11,143.1,0.2]
[1764208865809,2.86896581,143.11,143.1,0.099]
[1764208866606,7.62835153,143.11,143.1,0.099]
[1764208866809,7.62835153,143.11,143.1,0.779]
[1764208867108,7.62835153,143.11,143.1,0.099]
[1764208867495,14.61598342,143.11,143.1,0.099]
[1764208867903,40.01911548,143.11,143.1,1e-08]
[1764208868305,16.08189995,143.11,143.1,1e-08]
[1764208868508,26.83025148,143.11,143.1,1e-08]
[1764208870418,34.45860301,143.11,143.1,1e-08]
[1764208871013,16.308864,143.08,143.06,58.72933884]
[1764208871204,19.84261959,143.07,143.06,58.72933884]
[1764208871711,19.84261959,143.07,143.06,1e-08]
[1764208871712,26.8322051,143.07,143.06,1e-08]
[1764208876317,19.20385357,143.07,143.06,1e-08]
[1764208876613,26.8322051,143.07,143.06,1e-08]
[1764208877589,17.73793704,143.07,143.06,1e-08]
[1764208877789,7.62835153,143.08,143.06,0.70000001]
[1764208878510,14.61763662,143.08,143.06,0.70000001]
[1764208881728,7.62835153,143.07,143.06,0.70000001]
[1764208882409,14.61763662,143.08,143.06,0.70000001]
[1764208882604,6.98928509,143.08,143.06,0.70000001]
[1764208882933,14.61763662,143.08,143.06,0.70000001]
[1764208883137,7.62835153,143.07,143.06,0.70000001]
[1764208883796,14.61763662,143.08,143.06,0.70000001]
[1764208884016,6.98928509,143.08,143.06,0.70000001]
[1764208884418,14.61763662,143.08,143.06,0.70000001]
[1764208885799,6.98928509,143.08,143.06,0.70000001]
[1764208886114,7.62835153,143.07,143.06,0.70000001]
[1764208886619,6.98928509,143.08,143.06,0.70000001]
[1764208886923,2.87654648,143.07,143.06,0.70000001]
[1764208887422,2.87654648,143.07,143.06,1e-08]
[1764208887918,6.98958551,143.07,143.06,0.70000001]
[1764208888221,9.86613199,143.07,143.06,1e-08]
[1764208889233,10.05932046,143.14,143.06,0.70000001]
[1764208889402,19.18541048,143.08,143.06,0.70000001]
[1764208889896,26.1747852,143.08,143.06,0.70000001]
[1764208890523,25.13886611,143.08,143.06,0.70000001]
[1764208890902,1.84062739,143.07,143.06,0.70000001]
[1764208891104,1.84062739,143.07,143.06,1e-08]
[1764208891416,10.93489545,143.07,143.06,1e-08]
[1764208891602,16.308864,143.04,143.0,0.7]
[1764208891919,8.83314539,143.01,143.0,0.7]
[1764208893315,8.83314539,143.01,142.99,60.69214876]
[1764208893619,1.84062739,143.0,142.99,61.39214876]
[1764208894023,8.83363438,143.0,142.99,61.39214876]
[1764208894327,6.99300699,143.0,142.99,60.69214876]
[1764208894536,8.83363438,143.0,142.99,60.69214876]
[1764208894701,16.08727505,143.0,142.99,60.69214876]
[1764208894898,6.99300699,143.0,142.99,60.69214876]
[1764208895120,11.95363438,143.0,142.99,60.69214876]
[1764208895707,11.95363438,143.0,142.99,61.39214876]
[1764208896419,11.95363438,143.0,142.99,60.69214876]
[1764208896614,21.04790244,143.0,142.99,60.69214876]
[1764208897122,6.99249642,143.02,142.99,61.39214876]
[1764208897306,8.83312381,143.02,143.0,0.7]
[1764208897708,6.99249642,143.02,143.0,0.7]
[1764208897900,8.83312381,143.02,143.0,0.7]
[1764208899109,4.96062739,143.05,143.0,2.54062739]
[1764208899510,4.96062739,143.05,143.01,0.7]
[1764208900513,10.1106926,143.05,143.01,0.7]
[1764208900729,11.95131999,143.05,143.01,0.7]
[1764208900929,6.9906926,143.05,143.01,0.7]
[1764208901427,1.84062739,143.04,143.01,0.7]
[1764208901630,8.83131999,143.05,143.01,0.7]
[1764208902722,1.84062739,143.04,143.01,0.7]
[1764208903518,6.9906926,143.05,143.01,0.7]
[1764208903717,6.9906926,143.05,143.01,2.54062739]
[1764208903917,4.96062739,143.06,143.01,2.54062739]
[1764208903918,8.830819,143.06,143.01,2.54062739]
[1764208904114,6.99019161,143.06,143.02,2.56062739]
[1764208904320,1.84062739,143.04,143.02,0.72]
[1764208904532,1.84062739,143.03,143.02,0.72]
[1764208904842,8.83216762,143.03,143.02,0.72]
[1764208905932,8.83216762,143.03,142.99,60.69214876]
[1764208906124,1.84062739,143.02,143.01,0.72]
[1764208906524,4.93457772,143.02,143.01,0.72]
[1764208906726,11.9266068,143.02,143.01,0.72]
[1764208907530,11.9266068,143.02,142.99,61.41214876]
[1764208907740,11.9266068,143.02,143.0,0.72]
[1764208908041,4.93457772,143.01,142.99,60.69214876]
[1764208908217,4.93457772,143.0,142.99,60.69214876]
[1764208908930,11.92758471,143.0,142.99,60.69214876]
[1764208909436,11.92758471,143.0,142.99,61.41214876]
[1764208910319,6.99300699,143.0,142.99,61.41214876]
[1764208910915,6.99261594,143.01,142.99,61.41214876]
[1764208911115,6.99261594,143.01,143.0,0.72]
[1764208911742,11.92719366,143.01,143.0,0.72]
[1764208912238,11.92719366,143.01,142.99,60.69214876]
[1764208912441,8.05457772,143.0,142.99,60.69214876]
[1764208913149,3.12,143.0,142.99,60.69214876]
[1764208913444,8.05457772,143.0,142.99,60.69214876]
[1764208914324,8.05457772,143.0,142.99,25.56638163]
[1764208914325,24.14185277,143.0,142.99,25.56638163]
[1764208914531,8.80994492,142.99,142.94,0.72]
[1764208914719,4.93457772,142.96,142.94,0.72]
[1764208915722,4.93457772,142.95,142.94,0.72]
[1764208916228,11.93003067,142.95,142.94,0.72]
[1764208916624,11.93003067,142.95,142.93,62.65495868]
[1764208916948,4.93457772,142.94,142.93,62.65495868]
[1764208917744,6.99545295,142.95,142.93,63.37495868]
[1764208917931,6.99545295,142.95,142.93,62.65495868]
[1764208917932,8.05457772,142.94,142.93,62.65495868]
[1764208918323,15.05052007,142.94,142.93,62.65495868]
[1764208918517,8.05457772,142.94,142.93,62.65495868]
[1764208918936,15.05052007,142.94,142.93,62.65495868]
[1764208921442,6.99559359,142.95,142.93,63.37495868]
[1764208921645,6.99559359,142.95,142.94,0.72]
[1764208922151,11.93017131,142.95,142.94,0.72]
[1764208924847,6.99496362,142.96,142.94,0.72]
[1764208925021,4.93457772,142.95,142.94,0.72]
[1764208925922,11.92954134,142.96,142.94,0.72]
[1764208926446,6.99496362,142.96,142.94,0.72]
[1764208926648,11.92954134,142.96,142.94,0.72]
[1764208927951,4.93457772,142.95,142.94,0.72]
[1764208928529,1.84382919,142.95,142.94,0.72]
[1764208929856,8.83928214,142.95,142.94,0.72]
[1764208930030,101.48,142.98,142.94,7.71588086]
[1764208930233,17.48285515,143.0,142.94,7.71588086]
[1764208930234,4.96382919,142.99,142.94,12.67971005]
[1764208930540,4.96382919,142.99,142.95,0.67]
[1764208931440,11.95746323,142.99,142.95,0.67]
[1764208931951,1.84382919,142.98,142.95,0.67]
[1764208932152,8.83746323,142.99,142.95,0.67]
[1764208932357,11.95746323,142.99,142.95,0.67]
[1764208932655,8.83746323,142.99,142.95,0.67]
[1764208933532,6.99363404,142.99,142.95,2.51382919]
[1764208933734,10.11317248,143.0,142.96,1.84382919]
[1764208933950,10.11317248,143.0,142.96,2.51382919]
[1764208934148,16.308864,143.02,142.97,5.63382919]
[1764208934465,18.15269319,143.02,142.97,5.63382919]
[1764208934761,18.15269319,143.02,142.98,0.67]
[1764208935466,1.84382919,143.01,142.98,0.67]
[1764208936266,8.83594865,143.02,142.98,0.67]
[1764208936955,6.99211946,143.02,142.98,9.50764003]
[1764208937154,1.84382919,143.03,142.98,9.50764003]
[1764208937332,6.9909009,143.05,143.01,1.84382919]
[1764208937533,1.84382919,143.09,143.04,1.84382919]
[1764208937757,18.15269319,143.08,143.03,1.84382919]
[1764208937960,18.15269319,143.08,143.03,2.51382919]
[1764208938253,16.308864,143.08,143.04,2.51382919]
[1764208938631,16.308864,143.08,143.05,0.67]
[1764208938837,6.98927282,143.08,143.05,0.67]
[1764208939555,8.83310201,143.08,143.05,0.67]
[1764208940395,26.30584453,143.08,143.02,3.12]
[1764208940537,1.84382919,143.03,143.0,0.67]
[1764208940737,6.99202908,143.02,143.0,0.67]
[1764208940937,1.84382919,143.02,143.0,0.67]
[1764208941162,8.83544129,143.03,143.0,0.67]
[1764208941549,6.9916121,143.03,143.0,0.67]
[1764208941858,16.308864,143.05,143.01,1.84382919]
[1764208942067,1.84382919,143.06,143.01,1.84382919]
[1764208942360,1.84382919,143.06,143.02,0.67]
[1764208943063,6.99007409,143.06,143.02,0.67]
[1764208943263,18.15269319,143.08,143.02,12.62579978]
[1764208943561,1.84382919,143.05,143.02,0.67]
[1764208943754,1.84382919,143.05,143.03,0.67]
[1764208943953,1.84382919,143.06,143.03,0.67]
[1764208944356,1.84382919,143.05,143.03,0.67]
[1764208945159,8.83476762,143.05,143.03,0.67]
[1764208945844,6.99093843,143.05,143.03,0.67]
[1764208946867,35.62543571,143.08,143.03,0.67]
[1764208947049,6.9897132,143.07,143.03,0.67]
[1764208947456,6.9897132,143.07,143.03,2.51382919]
[1764208947658,6.9897132,143.07,143.03,0.67]
[1764208947965,8.83354239,143.07,143.04,0.67]
[1764208950259,8.83250597,143.09,143.04,9.5048579]
[1764208950462,1.84382919,143.08,143.04,0.67]
[1764208950674,2.87573868,143.08,143.05,0.67]
[1764208951158,6.98867678,143.09,143.05,0.67]
[1764208951362,29.29282492,143.1,143.05,0.67]
[1764208951566,6.98764412,143.11,143.06,2.87573868]
[1764208951974,6.98764412,143.11,143.07,0.67]
[1764208952479,2.87573868,143.09,143.07,0.67]
[1764208953452,9.86449486,143.09,143.07,0.67]
[1764208953655,6.98875618,143.09,143.07,0.67]
[1764208954560,9.86449486,143.09,143.07,0.67]
[1764208955081,6.98828097,143.1,143.07,0.67]
[1764208955457,6.98770675,143.11,143.07,0.67]
[1764208956166,6.98770675,143.11,143.07,3.54573868]
[1764208956564,6.98770675,143.11,143.08,0.67]
[1764208958485,2.87573868,143.1,143.08,0.67]
[1764208959129,9.86344543,143.11,143.08,0.67]
[1764208959304,6.98770675,143.11,143.08,0.67]
[1764208960813,20.34436518,143.12,143.08,0.67]
[1764208960814,6.98731083,143.12,143.08,0.67]
[1764208961011,5.75274573,143.21,143.1,2.87573868]
[1764208961012,16.82313526,143.16,143.1,2.87573868]
[1764208961319,6.98578912,143.15,143.12,2.87573868]
[1764208961685,6.98578912,143.15,143.13,0.7]
[1764208962196,6.98578912,143.15,143.08,23.4684812]
[1764208962197,2.87573868,143.14,143.09,2.87573868]
[1764208962388,2.87573868,143.14,143.1,0.7]
[1764208962389,2.87573868,143.12,143.1,0.7]
[1764208963016,2.87573868,143.11,143.08,3.12]
[1764208963185,2.87573868,143.11,143.08,3.82]
[1764208963395,2.87573868,143.11,143.09,0.7]
[1764208963612,2.87573868,143.12,143.09,0.7]
[1764208963784,2.87573868,143.1,143.08,3.12]